[Event "Titled Tuesday Blitz January 18 2022"]
[White "Hardaway, Brewington"]
[Black "Wagner, Dennis"]
[WhiteFideId "30941849"]
[BlackFideId "24650684"]
[WhiteElo "1768"]
[BlackElo "2355"]
[Result "0-1"]
[Round "05"]
[TimeControl "180+1"]
[Date "2022.01.18"]
[WhiteClock "0:00:47"]
[BlackClock "0:00:20"]

1. e4 {[%clk 0:03:00]}  e5 {[%clk 0:02:21]} 2. Nf3 {[%clk 0:02:58]}  Nc6 {[%clk 0:02:22]} 3. Nc3 {[%clk 0:02:58]}  Nf6 {[%clk 0:02:22]} 4. Bb5 {[%clk 0:02:57]}  Bb4 {[%clk 0:02:18]} 5. Nd5 {[%clk 0:02:56]}  Bc5 {[%clk 0:01:56]} 6. d3 {[%clk 0:02:48]}  Nxd5 {[%clk 0:01:36]} 7. exd5 {[%clk 0:02:47]}  Nd4 {[%clk 0:01:36]} 8. Nxd4 {[%clk 0:02:42]}  Bxd4 {[%clk 0:01:36]} 9. c3 {[%clk 0:02:42]}  Bb6 {[%clk 0:01:34]} 10. O-O {[%clk 0:02:42]}  O-O {[%clk 0:01:34]} 11. Be3 {[%clk 0:02:40]}  d6 {[%clk 0:01:30]} 12. d4 {[%clk 0:02:37]}  f5 {[%clk 0:01:14]} 13. dxe5 {[%clk 0:02:36]}  dxe5 {[%clk 0:01:14]} 14. Bxb6 {[%clk 0:02:22]}  axb6 {[%clk 0:01:15]} 15. f4 {[%clk 0:02:21]}  Qd6 {[%clk 0:01:07]} 16. Bc4 {[%clk 0:02:04]}  Qc5+ {[%clk 0:01:06]} 17. Kh1 {[%clk 0:02:02]}  Qxc4 {[%clk 0:01:06]} 18. fxe5 {[%clk 0:02:02]}  Ra5 {[%clk 0:01:06]} 19. e6 {[%clk 0:01:56]}  Rxd5 {[%clk 0:01:03]} 20. Qh5 {[%clk 0:01:47]}  Bxe6 {[%clk 0:01:01]} 21. Rfe1 {[%clk 0:01:46]}  Rd2 {[%clk 0:00:59]} 22. Qg5 {[%clk 0:01:43]}  Rxb2 {[%clk 0:00:51]} 23. Rad1 {[%clk 0:01:32]}  Bd5 {[%clk 0:00:50]} 24. Re7 {[%clk 0:01:24]}  Rxg2 {[%clk 0:00:22]} 25. Rxg7+ {[%clk 0:01:04]}  Kh8 {[%clk 0:00:23]} 26. Rxh7+ {[%clk 0:00:48]}  Kxh7 {[%clk 0:00:22]} 27. Qh4+ {[%clk 0:00:47]}  Qxh4 {[%clk 0:00:20]} 0-1


[Site "https://www.chess.com"]

[Event "Titled Tuesday Blitz January 18 2022"]
[White "Harshavardhan G B"]
[Black "Sjoberg, Isak"]
[WhiteFideId "25059009"]
[BlackFideId "1521640"]
[WhiteElo "1831"]
[BlackElo "2016"]
[Result "0-1"]
[Round "05"]
[TimeControl "180+1"]
[Date "2022.01.18"]
[WhiteClock "0:00:19"]
[BlackClock "0:00:27"]

1. e4 {[%clk 0:03:00]}  e5 {[%clk 0:02:55]} 2. Nc3 {[%clk 0:02:59]}  Nf6 {[%clk 0:02:55]} 3. Bc4 {[%clk 0:02:58]}  Nc6 {[%clk 0:02:55]} 4. d3 {[%clk 0:02:57]}  Bb4 {[%clk 0:02:55]} 5. Ne2 {[%clk 0:02:57]}  d5 {[%clk 0:02:56]} 6. exd5 {[%clk 0:02:56]}  Nxd5 {[%clk 0:02:57]} 7. O-O {[%clk 0:02:57]}  Bxc3 {[%clk 0:02:57]} 8. bxc3 {[%clk 0:02:56]}  O-O {[%clk 0:02:58]} 9. h3 {[%clk 0:02:51]}  Nb6 {[%clk 0:02:43]} 10. Bb3 {[%clk 0:02:49]}  Kh8 {[%clk 0:02:42]} 11. f4 {[%clk 0:02:46]}  f6 {[%clk 0:02:18]} 12. Ng3 {[%clk 0:02:40]}  exf4 {[%clk 0:02:17]} 13. Bxf4 {[%clk 0:02:41]}  Nd5 {[%clk 0:02:09]} 14. Bd2 {[%clk 0:02:32]}  Be6 {[%clk 0:02:04]} 15. Qe2 {[%clk 0:02:18]}  Re8 {[%clk 0:01:58]} 16. Rae1 {[%clk 0:02:15]}  Qd7 {[%clk 0:01:56]} 17. Qf2 {[%clk 0:02:11]}  a5 {[%clk 0:01:53]} 18. a4 {[%clk 0:02:08]}  Bf7 {[%clk 0:01:47]} 19. Ne4 {[%clk 0:02:07]}  b6 {[%clk 0:01:46]} 20. Bc4 {[%clk 0:01:39]}  Ne5 {[%clk 0:01:40]} 21. Bb3 {[%clk 0:01:36]}  Ng6 {[%clk 0:01:33]} 22. Kh2 {[%clk 0:01:29]}  c6 {[%clk 0:01:31]} 23. g3 {[%clk 0:01:26]}  Qc7 {[%clk 0:01:24]} 24. Kg2 {[%clk 0:01:17]}  Rad8 {[%clk 0:01:17]} 25. h4 {[%clk 0:01:15]}  Ne5 {[%clk 0:01:13]} 26. Kg1 {[%clk 0:01:09]}  Ng4 {[%clk 0:01:08]} 27. Qf3 {[%clk 0:01:04]}  Bh5 {[%clk 0:01:04]} 28. c4 {[%clk 0:00:58]}  Nge3 {[%clk 0:00:55]} 29. Qxh5 {[%clk 0:00:56]}  Rxe4 {[%clk 0:00:55]} 30. Qf3 {[%clk 0:00:51]}  Rg4 {[%clk 0:00:45]} 31. Rxe3 {[%clk 0:00:48]}  Nxe3 {[%clk 0:00:45]} 32. Bxe3 {[%clk 0:00:49]}  Rxg3+ {[%clk 0:00:45]} 33. Kf2 {[%clk 0:00:44]}  Rxf3+ {[%clk 0:00:45]} 34. Kxf3 {[%clk 0:00:44]}  Qh2 {[%clk 0:00:45]} 35. Bxb6 {[%clk 0:00:41]}  Re8 {[%clk 0:00:45]} 36. Rg1 {[%clk 0:00:37]}  Qh3+ {[%clk 0:00:40]} 37. Kf2 {[%clk 0:00:32]}  Qxh4+ {[%clk 0:00:39]} 38. Kf3 {[%clk 0:00:32]}  Qh5+ {[%clk 0:00:36]} 39. Kg3 {[%clk 0:00:30]}  Re2 {[%clk 0:00:33]} 40. Bf2 {[%clk 0:00:27]}  Qg5+ {[%clk 0:00:33]} 41. Kf3 {[%clk 0:00:23]}  Qh5+ {[%clk 0:00:32]} 42. Kg2 {[%clk 0:00:22]}  Qg4+ {[%clk 0:00:30]} 43. Kf1 {[%clk 0:00:20]}  Qf3 {[%clk 0:00:31]} 44. Rg2 {[%clk 0:00:21]}  Rd2 {[%clk 0:00:31]} 45. Kg1 {[%clk 0:00:21]}  Qh5 {[%clk 0:00:27]} 46. Rg3 {[%clk 0:00:19]}  Rd1+ {[%clk 0:00:27]} 0-1


[Site "https://www.chess.com"]

[Event "Titled Tuesday Blitz January 18 2022"]
[White "Howell, David W L"]
[Black "Nazari, Arad"]
[WhiteFideId "410608"]
[BlackFideId "12577324"]
[WhiteElo "2559"]
[BlackElo "2120"]
[Result "1-0"]
[Round "05"]
[TimeControl "180+1"]
[Date "2022.01.18"]
[WhiteClock "0:01:15"]
[BlackClock "0:00:01"]

1. e4 {[%clk 0:03:00]}  d5 {[%clk 0:02:55]} 2. d3 {[%clk 0:02:52]}  c5 {[%clk 0:02:49]} 3. Be2 {[%clk 0:02:51]}  Nc6 {[%clk 0:02:47]} 4. f4 {[%clk 0:02:44]}  e5 {[%clk 0:02:12]} 5. exd5 {[%clk 0:02:41]}  Qxd5 {[%clk 0:02:13]} 6. Bf3 {[%clk 0:02:34]}  Qd6 {[%clk 0:02:13]} 7. Ne2 {[%clk 0:02:30]}  Nd4 {[%clk 0:02:09]} 8. Nxd4 {[%clk 0:02:28]}  exd4 {[%clk 0:02:09]} 9. O-O {[%clk 0:02:26]}  Be7 {[%clk 0:02:05]} 10. Re1 {[%clk 0:02:20]}  Nf6 {[%clk 0:01:59]} 11. Qe2 {[%clk 0:02:20]}  Rb8 {[%clk 0:01:59]} 12. Na3 {[%clk 0:02:09]}  b5 {[%clk 0:01:40]} 13. f5 {[%clk 0:02:09]}  Rb6 {[%clk 0:01:35]} 14. Bf4 {[%clk 0:02:06]}  Qd8 {[%clk 0:01:29]} 15. g4 {[%clk 0:01:47]}  h5 {[%clk 0:00:48]} 16. g5 {[%clk 0:01:44]}  Bxf5 {[%clk 0:00:49]} 17. gxf6 {[%clk 0:01:39]}  Rxf6 {[%clk 0:00:50]} 18. Nxb5 {[%clk 0:01:39]}  Be6 {[%clk 0:00:33]} 19. Nc7+ {[%clk 0:01:37]}  Kf8 {[%clk 0:00:28]} 20. Nxe6+ {[%clk 0:01:38]}  Rxe6 {[%clk 0:00:27]} 21. Qd2 {[%clk 0:01:35]}  Rf6 {[%clk 0:00:25]} 22. Be4 {[%clk 0:01:28]}  Qb6 {[%clk 0:00:12]} 23. b3 {[%clk 0:01:26]}  Rg8 {[%clk 0:00:07]} 24. Kh1 {[%clk 0:01:23]}  Re6 {[%clk 0:00:04]} 25. Bd5 {[%clk 0:01:20]}  Rxe1+ {[%clk 0:00:04]} 26. Rxe1 {[%clk 0:01:21]}  Bd6 {[%clk 0:00:04]} 27. Qe2 {[%clk 0:01:16]}  g6 {[%clk 0:00:01]} 28. Bh6+ {[%clk 0:01:15]} 1-0


[Site "https://www.chess.com"]

[Event "Titled Tuesday Blitz January 18 2022"]
[White "Iskusnyh, Sergei"]
[Black "Pakleza, Zbigniew"]
[WhiteFideId "4120027"]
[BlackFideId "1119290"]
[WhiteElo "2492"]
[BlackElo "2467"]
[Result "1-0"]
[Round "05"]
[TimeControl "180+1"]
[Date "2022.01.18"]
[WhiteClock "0:01:20"]
[BlackClock "0:00:06"]

1. d4 {[%clk 0:03:00]}  d6 {[%clk 0:02:59]} 2. Nf3 {[%clk 0:03:00]}  Bg4 {[%clk 0:02:59]} 3. c4 {[%clk 0:02:58]}  c6 {[%clk 0:02:58]} 4. g3 {[%clk 0:02:56]}  Bxf3 {[%clk 0:02:57]} 5. exf3 {[%clk 0:02:56]}  e6 {[%clk 0:02:58]} 6. d5 {[%clk 0:02:51]}  exd5 {[%clk 0:02:48]} 7. cxd5 {[%clk 0:02:51]}  c5 {[%clk 0:02:49]} 8. Nc3 {[%clk 0:02:46]}  Nf6 {[%clk 0:02:48]} 9. Bh3 {[%clk 0:02:45]}  Be7 {[%clk 0:02:45]} 10. O-O {[%clk 0:02:45]}  O-O {[%clk 0:02:45]} 11. Re1 {[%clk 0:02:44]}  Nbd7 {[%clk 0:02:37]} 12. f4 {[%clk 0:02:42]}  Re8 {[%clk 0:02:32]} 13. Bd2 {[%clk 0:02:40]}  Nb6 {[%clk 0:02:23]} 14. Qb3 {[%clk 0:02:29]}  Bf8 {[%clk 0:01:31]} 15. a4 {[%clk 0:02:17]}  Qc7 {[%clk 0:01:13]} 16. a5 {[%clk 0:02:08]}  Rxe1+ {[%clk 0:01:11]} 17. Rxe1 {[%clk 0:02:07]}  Nbd7 {[%clk 0:00:49]} 18. Nb5 {[%clk 0:02:06]}  Qb8 {[%clk 0:00:42]} 19. Bc3 {[%clk 0:02:03]}  a6 {[%clk 0:00:31]} 20. Na3 {[%clk 0:02:03]}  b5 {[%clk 0:00:31]} 21. axb6 {[%clk 0:02:00]}  Qxb6 {[%clk 0:00:32]} 22. Qa4 {[%clk 0:01:57]}  Qc7 {[%clk 0:00:26]} 23. Nc4 {[%clk 0:01:54]}  h5 {[%clk 0:00:15]} 24. Qc6 {[%clk 0:01:51]}  Rc8 {[%clk 0:00:13]} 25. Bxf6 {[%clk 0:01:49]}  Qxc6 {[%clk 0:00:07]} 26. dxc6 {[%clk 0:01:48]}  Rxc6 {[%clk 0:00:08]} 27. Bxd7 {[%clk 0:01:47]}  Rc7 {[%clk 0:00:09]} 28. Bf5 {[%clk 0:01:28]}  gxf6 {[%clk 0:00:08]} 29. Rd1 {[%clk 0:01:28]}  Rb7 {[%clk 0:00:06]} 30. Be4 {[%clk 0:01:26]}  Rb4 {[%clk 0:00:05]} 31. Bd5 {[%clk 0:01:26]}  Kg7 {[%clk 0:00:05]} 32. Ra1 {[%clk 0:01:24]}  Rb3 {[%clk 0:00:05]} 33. Rxa6 {[%clk 0:01:20]}  Rd3 {[%clk 0:00:06]} 34. Ne3 {[%clk 0:01:20]} 1-0


[Site "https://www.chess.com"]

[Event "Titled Tuesday Blitz January 18 2022"]
[White "Kamsky, Gata"]
[Black "Kim, Sergey"]
[WhiteFideId "2000024"]
[BlackFideId "13700570"]
[WhiteElo "2645"]
[BlackElo "2574"]
[Result "0-1"]
[Round "05"]
[TimeControl "180+1"]
[Date "2022.01.18"]
[WhiteClock "0:00:02"]
[BlackClock "0:00:22"]

1. e4 {[%clk 0:03:00]}  e5 {[%clk 0:03:00]} 2. Nf3 {[%clk 0:03:00]}  Nc6 {[%clk 0:03:00]} 3. Bb5 {[%clk 0:02:59]}  a6 {[%clk 0:03:00]} 4. Ba4 {[%clk 0:02:59]}  Nf6 {[%clk 0:03:00]} 5. O-O {[%clk 0:02:59]}  b5 {[%clk 0:03:00]} 6. Bb3 {[%clk 0:02:58]}  Bc5 {[%clk 0:03:01]} 7. a4 {[%clk 0:02:57]}  Bb7 {[%clk 0:03:00]} 8. d3 {[%clk 0:02:55]}  d6 {[%clk 0:03:00]} 9. Nc3 {[%clk 0:02:54]}  b4 {[%clk 0:02:58]} 10. Ne2 {[%clk 0:02:53]}  h6 {[%clk 0:02:58]} 11. a5 {[%clk 0:02:51]}  O-O {[%clk 0:02:57]} 12. Ng3 {[%clk 0:02:48]}  Bc8 {[%clk 0:02:53]} 13. c3 {[%clk 0:02:46]}  Rb8 {[%clk 0:02:44]} 14. d4 {[%clk 0:02:43]}  Ba7 {[%clk 0:02:42]} 15. Ba4 {[%clk 0:02:41]}  Bd7 {[%clk 0:02:38]} 16. h3 {[%clk 0:02:31]}  Re8 {[%clk 0:02:27]} 17. Re1 {[%clk 0:02:23]}  bxc3 {[%clk 0:02:16]} 18. bxc3 {[%clk 0:02:21]}  exd4 {[%clk 0:02:16]} 19. cxd4 {[%clk 0:02:20]}  Nb4 {[%clk 0:02:16]} 20. Bb3 {[%clk 0:01:43]}  Be6 {[%clk 0:02:11]} 21. d5 {[%clk 0:01:40]}  Bd7 {[%clk 0:02:10]} 22. Be3 {[%clk 0:01:40]}  Bxe3 {[%clk 0:02:06]} 23. Rxe3 {[%clk 0:01:40]}  c5 {[%clk 0:01:46]} 24. dxc6 {[%clk 0:01:30]}  Bxc6 {[%clk 0:01:46]} 25. Qd4 {[%clk 0:01:13]}  Ba8 {[%clk 0:01:33]} 26. Nf5 {[%clk 0:00:43]}  Rxe4 {[%clk 0:01:18]} 27. Rxe4 {[%clk 0:00:41]}  Bxe4 {[%clk 0:01:18]} 28. Nxd6 {[%clk 0:00:32]}  Bxf3 {[%clk 0:01:10]} 29. Bxf7+ {[%clk 0:00:26]}  Kh8 {[%clk 0:01:08]} 30. Bg6 {[%clk 0:00:22]}  Bd5 {[%clk 0:01:05]} 31. Qe5 {[%clk 0:00:19]}  Nc6 {[%clk 0:00:53]} 32. Qf4 {[%clk 0:00:17]}  Qf8 {[%clk 0:00:51]} 33. Rd1 {[%clk 0:00:16]}  Rd8 {[%clk 0:00:48]} 34. Nb7 {[%clk 0:00:15]}  Rd7 {[%clk 0:00:45]} 35. Rb1 {[%clk 0:00:13]}  Bf7 {[%clk 0:00:36]} 36. Bf5 {[%clk 0:00:13]}  Re7 {[%clk 0:00:35]} 37. Nd6 {[%clk 0:00:12]}  Bg8 {[%clk 0:00:34]} 38. Rb6 {[%clk 0:00:10]}  Ne5 {[%clk 0:00:34]} 39. Rxa6 {[%clk 0:00:09]}  Ne8 {[%clk 0:00:32]} 40. Nxe8 {[%clk 0:00:08]}  Rxe8 {[%clk 0:00:32]} 41. Rb6 {[%clk 0:00:08]}  Nd3 {[%clk 0:00:31]} 42. Qf3 {[%clk 0:00:07]}  Ne1 {[%clk 0:00:30]} 43. Qg4 {[%clk 0:00:06]}  Qe7 {[%clk 0:00:29]} 44. Qg6 {[%clk 0:00:05]}  Rf8 {[%clk 0:00:26]} 45. a6 {[%clk 0:00:05]}  Nd3 {[%clk 0:00:24]} 46. Rb7 {[%clk 0:00:04]}  Qe1+ {[%clk 0:00:22]} 47. Kh2 {[%clk 0:00:05]}  Qe5+ {[%clk 0:00:22]} 48. Qg3 {[%clk 0:00:04]}  Qxg3+ {[%clk 0:00:21]} 49. Kxg3 {[%clk 0:00:03]}  Rxf5 {[%clk 0:00:22]} 50. a7 {[%clk 0:00:02]}  Ra5 {[%clk 0:00:22]} 0-1


[Site "https://www.chess.com"]

[Event "Titled Tuesday Blitz January 18 2022"]
[White "Kaufman, Raymond"]
[Black "Mokshanov, Alexey"]
[WhiteFideId "2015056"]
[BlackFideId "24121657"]
[WhiteElo "2321"]
[BlackElo "2141"]
[Result "1/2-1/2"]
[Round "05"]
[TimeControl "180+1"]
[Date "2022.01.18"]
[WhiteClock "0:00:24"]
[BlackClock "0:00:47"]

1. e4 {[%clk 0:03:00]}  e6 {[%clk 0:02:57]} 2. d4 {[%clk 0:03:00]}  d5 {[%clk 0:02:58]} 3. Nc3 {[%clk 0:03:00]}  Nf6 {[%clk 0:02:58]} 4. e5 {[%clk 0:03:00]}  Nfd7 {[%clk 0:02:58]} 5. f4 {[%clk 0:03:00]}  c5 {[%clk 0:02:58]} 6. Nf3 {[%clk 0:03:01]}  Nc6 {[%clk 0:02:59]} 7. Be3 {[%clk 0:03:00]}  Be7 {[%clk 0:03:00]} 8. Qd2 {[%clk 0:02:53]}  O-O {[%clk 0:02:59]} 9. dxc5 {[%clk 0:02:48]}  Bxc5 {[%clk 0:02:59]} 10. O-O-O {[%clk 0:02:27]}  Qa5 {[%clk 0:02:58]} 11. Bxc5 {[%clk 0:02:20]}  Nxc5 {[%clk 0:02:57]} 12. Kb1 {[%clk 0:02:17]}  Rb8 {[%clk 0:02:57]} 13. Nd4 {[%clk 0:02:15]}  a6 {[%clk 0:02:26]} 14. Nxc6 {[%clk 0:02:01]}  bxc6 {[%clk 0:02:25]} 15. Nxd5 {[%clk 0:02:01]}  Qa3 {[%clk 0:02:01]} 16. Qc3 {[%clk 0:01:54]}  Rxb2+ {[%clk 0:01:39]} 17. Qxb2 {[%clk 0:01:51]}  Qxb2+ {[%clk 0:01:40]} 18. Kxb2 {[%clk 0:01:51]}  cxd5 {[%clk 0:01:40]} 19. c4 {[%clk 0:01:45]}  Bb7 {[%clk 0:01:39]} 20. Be2 {[%clk 0:01:41]}  dxc4 {[%clk 0:01:37]} 21. Bxc4 {[%clk 0:01:42]}  Bxg2 {[%clk 0:01:37]} 22. Rhg1 {[%clk 0:01:41]}  Be4 {[%clk 0:01:32]} 23. Rd6 {[%clk 0:01:36]}  Rb8+ {[%clk 0:01:23]} 24. Kc3 {[%clk 0:01:35]}  g6 {[%clk 0:01:23]} 25. Kd4 {[%clk 0:01:31]}  Rc8 {[%clk 0:01:17]} 26. Rd1 {[%clk 0:01:21]}  Bf3 {[%clk 0:01:01]} 27. Rf1 {[%clk 0:01:12]}  Bg2 {[%clk 0:00:58]} 28. Rb1 {[%clk 0:01:09]}  Kg7 {[%clk 0:00:54]} 29. Bxa6 {[%clk 0:01:02]}  Nxa6 {[%clk 0:00:53]} 30. Rxa6 {[%clk 0:01:02]}  Bd5 {[%clk 0:00:53]} 31. Rb4 {[%clk 0:00:49]}  Rc2 {[%clk 0:00:52]} 32. a4 {[%clk 0:00:47]}  Rxh2 {[%clk 0:00:52]} 33. a5 {[%clk 0:00:45]}  h5 {[%clk 0:00:51]} 34. Rd6 {[%clk 0:00:36]}  Ra2 {[%clk 0:00:49]} 35. a6 {[%clk 0:00:36]}  h4 {[%clk 0:00:49]} 36. Rb1 {[%clk 0:00:32]}  h3 {[%clk 0:00:46]} 37. Rxd5 {[%clk 0:00:27]}  exd5 {[%clk 0:00:44]} 38. Rh1 {[%clk 0:00:24]}  Rxa6 {[%clk 0:00:42]} 39. Rxh3 {[%clk 0:00:24]}  Ra4+ {[%clk 0:00:42]} 40. Ke3 {[%clk 0:00:23]}  Re4+ {[%clk 0:00:40]} 41. Kf3 {[%clk 0:00:23]}  g5 {[%clk 0:00:40]} 42. fxg5 {[%clk 0:00:21]}  Kg6 {[%clk 0:00:40]} 43. Rh6+ {[%clk 0:00:16]}  Kxg5 {[%clk 0:00:38]} 44. Rf6 {[%clk 0:00:16]}  Rxe5 {[%clk 0:00:37]} 45. Rxf7 {[%clk 0:00:16]}  Rf5+ {[%clk 0:00:35]} 46. Rxf5+ {[%clk 0:00:17]}  Kxf5 {[%clk 0:00:36]} 47. Ke3 {[%clk 0:00:17]}  Ke5 {[%clk 0:00:36]} 48. Kd3 {[%clk 0:00:18]}  d4 {[%clk 0:00:37]} 49. Kd2 {[%clk 0:00:19]}  Ke4 {[%clk 0:00:38]} 50. Ke2 {[%clk 0:00:19]}  d3+ {[%clk 0:00:39]} 51. Kd2 {[%clk 0:00:20]}  Kd4 {[%clk 0:00:40]} 52. Kd1 {[%clk 0:00:20]}  Kd5 {[%clk 0:00:41]} 53. Kd2 {[%clk 0:00:21]}  Ke4 {[%clk 0:00:42]} 54. Kd1 {[%clk 0:00:21]}  Ke3 {[%clk 0:00:43]} 55. Ke1 {[%clk 0:00:22]}  Kd4 {[%clk 0:00:43]} 56. Kd2 {[%clk 0:00:22]}  Kc4 {[%clk 0:00:44]} 57. Kd1 {[%clk 0:00:22]}  Kc3 {[%clk 0:00:45]} 58. Kc1 {[%clk 0:00:23]}  d2+ {[%clk 0:00:46]} 59. Kd1 {[%clk 0:00:24]}  Kd3 {[%clk 0:00:47]} 1/2-1/2


[Site "https://www.chess.com"]

[Event "Titled Tuesday Blitz January 18 2022"]
[White "Klukin, Kirill"]
[Black "Lenderman, Aleksandr"]
[WhiteFideId "24199273"]
[BlackFideId "2021285"]
[WhiteElo "2324"]
[BlackElo "2651"]
[Result "1-0"]
[Round "05"]
[TimeControl "180+1"]
[Date "2022.01.18"]
[WhiteClock "0:00:27"]
[BlackClock "0:00:01"]

1. Nf3 {[%clk 0:03:00]}  b6 {[%clk 0:01:30]} 2. b3 {[%clk 0:03:00]}  Bb7 {[%clk 0:01:31]} 3. Bb2 {[%clk 0:03:00]}  c5 {[%clk 0:01:26]} 4. e3 {[%clk 0:02:59]}  Nf6 {[%clk 0:01:24]} 5. Be2 {[%clk 0:02:59]}  e6 {[%clk 0:01:22]} 6. O-O {[%clk 0:02:59]}  Be7 {[%clk 0:01:21]} 7. c4 {[%clk 0:02:59]}  O-O {[%clk 0:01:21]} 8. d4 {[%clk 0:02:59]}  cxd4 {[%clk 0:01:19]} 9. Nxd4 {[%clk 0:02:59]}  d5 {[%clk 0:01:06]} 10. Nc3 {[%clk 0:02:59]}  Nc6 {[%clk 0:01:05]} 11. cxd5 {[%clk 0:02:55]}  Nxd4 {[%clk 0:00:59]} 12. Qxd4 {[%clk 0:02:55]}  Bc5 {[%clk 0:00:59]} 13. Qe5 {[%clk 0:02:46]}  exd5 {[%clk 0:00:52]} 14. Rfd1 {[%clk 0:02:46]}  Re8 {[%clk 0:00:52]} 15. Qg5 {[%clk 0:02:46]}  d4 {[%clk 0:00:51]} 16. Na4 {[%clk 0:02:31]}  h6 {[%clk 0:00:44]} 17. Qh4 {[%clk 0:02:21]}  Re4 {[%clk 0:00:39]} 18. Qg3 {[%clk 0:02:17]}  Bd6 {[%clk 0:00:37]} 19. Qh3 {[%clk 0:01:59]}  dxe3 {[%clk 0:00:35]} 20. f3 {[%clk 0:01:52]}  Re6 {[%clk 0:00:20]} 21. Bc4 {[%clk 0:01:38]}  e2 {[%clk 0:00:20]} 22. Re1 {[%clk 0:01:08]}  Bd5 {[%clk 0:00:18]} 23. Bxf6 {[%clk 0:01:03]}  Qxf6 {[%clk 0:00:16]} 24. Bxd5 {[%clk 0:01:02]}  Qd4+ {[%clk 0:00:16]} 25. Kh1 {[%clk 0:00:58]}  Qxd5 {[%clk 0:00:10]} 26. Nc3 {[%clk 0:00:58]}  Qd3 {[%clk 0:00:07]} 27. Ne4 {[%clk 0:00:58]}  Be5 {[%clk 0:00:05]} 28. Rac1 {[%clk 0:00:56]}  Rd8 {[%clk 0:00:04]} 29. Qh4 {[%clk 0:00:53]}  Ree8 {[%clk 0:00:03]} 30. Qf2 {[%clk 0:00:53]}  f5 {[%clk 0:00:02]} 31. Ng3 {[%clk 0:00:30]}  Bd4 {[%clk 0:00:02]} 32. Qxe2 {[%clk 0:00:25]}  Rxe2 {[%clk 0:00:02]} 33. Nxe2 {[%clk 0:00:26]}  Be3 {[%clk 0:00:02]} 34. Rb1 {[%clk 0:00:26]}  Bd2 {[%clk 0:00:01]} 35. Nf4 {[%clk 0:00:27]} 1-0


[Site "https://www.chess.com"]

[Event "Titled Tuesday Blitz January 18 2022"]
[White "Koelle, Tobias"]
[Black "Corrales Jimenez, Fidel"]
[WhiteFideId "16207378"]
[BlackFideId "3506690"]
[WhiteElo "2541"]
[BlackElo "2541"]
[Result "0-1"]
[Round "05"]
[TimeControl "180+1"]
[Date "2022.01.18"]
[WhiteClock "0:00:05"]
[BlackClock "0:00:45"]

1. d4 {[%clk 0:03:00]}  Nf6 {[%clk 0:02:58]} 2. c4 {[%clk 0:02:54]}  g6 {[%clk 0:02:54]} 3. f3 {[%clk 0:02:51]}  d5 {[%clk 0:02:54]} 4. cxd5 {[%clk 0:02:51]}  Nxd5 {[%clk 0:02:54]} 5. e4 {[%clk 0:02:51]}  Nb6 {[%clk 0:02:55]} 6. Nc3 {[%clk 0:02:52]}  Bg7 {[%clk 0:02:56]} 7. Be3 {[%clk 0:02:53]}  O-O {[%clk 0:02:57]} 8. Qd2 {[%clk 0:02:53]}  Nc6 {[%clk 0:02:57]} 9. O-O-O {[%clk 0:02:54]}  f5 {[%clk 0:02:57]} 10. e5 {[%clk 0:02:54]}  Nb4 {[%clk 0:02:56]} 11. h4 {[%clk 0:02:41]}  f4 {[%clk 0:02:56]} 12. Bxf4 {[%clk 0:02:38]}  Be6 {[%clk 0:02:57]} 13. h5 {[%clk 0:02:10]}  Nxa2+ {[%clk 0:02:56]} 14. Nxa2 {[%clk 0:02:10]}  Bxa2 {[%clk 0:02:57]} 15. hxg6 {[%clk 0:02:10]}  Qd5 {[%clk 0:02:52]} 16. Bh6 {[%clk 0:02:01]}  hxg6 {[%clk 0:02:36]} 17. Bxg7 {[%clk 0:01:58]}  Kxg7 {[%clk 0:02:37]} 18. Ne2 {[%clk 0:01:04]}  Bb3 {[%clk 0:02:33]} 19. Nc3 {[%clk 0:01:01]}  Qa5 {[%clk 0:02:33]} 20. Qh6+ {[%clk 0:01:01]}  Kf7 {[%clk 0:02:33]} 21. Bd3 {[%clk 0:00:55]}  Qa1+ {[%clk 0:01:55]} 22. Bb1 {[%clk 0:00:45]}  Rg8 {[%clk 0:01:49]} 23. d5 {[%clk 0:00:32]}  Raf8 {[%clk 0:01:37]} 24. d6 {[%clk 0:00:25]}  Nc4 {[%clk 0:01:25]} 25. Rd2 {[%clk 0:00:22]}  Nxd2 {[%clk 0:01:07]} 26. Qxd2 {[%clk 0:00:22]}  Rh8 {[%clk 0:01:05]} 27. Rxh8 {[%clk 0:00:17]}  Rxh8 {[%clk 0:01:04]} 28. Qf4+ {[%clk 0:00:07]}  Kg7 {[%clk 0:01:04]} 29. dxe7 {[%clk 0:00:06]}  Rh1+ {[%clk 0:01:01]} 30. Kd2 {[%clk 0:00:07]}  Qxb2+ {[%clk 0:01:01]} 31. Kd3 {[%clk 0:00:06]}  Rd1+ {[%clk 0:00:53]} 32. Nxd1 {[%clk 0:00:05]}  Qxb1+ {[%clk 0:00:53]} 33. Kc3 {[%clk 0:00:04]}  Qc2+ {[%clk 0:00:54]} 34. Kb4 {[%clk 0:00:04]}  a5+ {[%clk 0:00:47]} 35. Kxa5 {[%clk 0:00:05]}  Qc5# {[%clk 0:00:45]} 0-1


[Site "https://www.chess.com"]

[Event "Titled Tuesday Blitz January 18 2022"]
[White "Kosakowski, Jakub"]
[Black "Onyshchuk, Volodymyr"]
[WhiteFideId "1185080"]
[BlackFideId "14114038"]
[WhiteElo "2476"]
[BlackElo "2642"]
[Result "1-0"]
[Round "05"]
[TimeControl "180+1"]
[Date "2022.01.18"]
[WhiteClock "0:00:27"]
[BlackClock "0:00:01"]

1. Nf3 {[%clk 0:02:54]}  g6 {[%clk 0:03:00]} 2. e4 {[%clk 0:02:53]}  Bg7 {[%clk 0:03:01]} 3. d4 {[%clk 0:02:54]}  d6 {[%clk 0:03:01]} 4. Bc4 {[%clk 0:02:54]}  e6 {[%clk 0:02:59]} 5. O-O {[%clk 0:02:48]}  Ne7 {[%clk 0:02:59]} 6. Re1 {[%clk 0:02:46]}  a6 {[%clk 0:02:59]} 7. Nbd2 {[%clk 0:02:46]}  b6 {[%clk 0:02:58]} 8. Nf1 {[%clk 0:02:46]}  Bb7 {[%clk 0:02:58]} 9. a4 {[%clk 0:02:39]}  Nd7 {[%clk 0:02:56]} 10. Bb3 {[%clk 0:02:37]}  h6 {[%clk 0:02:54]} 11. c3 {[%clk 0:02:36]}  O-O {[%clk 0:02:53]} 12. Ng3 {[%clk 0:02:35]}  Qb8 {[%clk 0:02:52]} 13. h4 {[%clk 0:02:34]}  Qa7 {[%clk 0:02:49]} 14. h5 {[%clk 0:02:33]}  g5 {[%clk 0:02:49]} 15. Nh2 {[%clk 0:02:33]}  e5 {[%clk 0:02:17]} 16. Ng4 {[%clk 0:02:24]}  Rae8 {[%clk 0:02:16]} 17. Qf3 {[%clk 0:02:16]}  Qa8 {[%clk 0:02:07]} 18. Bxg5 {[%clk 0:01:21]}  hxg5 {[%clk 0:01:58]} 19. h6 {[%clk 0:01:22]}  Bh8 {[%clk 0:01:55]} 20. Nh5 {[%clk 0:01:19]}  Kh7 {[%clk 0:01:12]} 21. Bxf7 {[%clk 0:01:08]}  Qd8 {[%clk 0:00:38]} 22. Nhf6+ {[%clk 0:00:50]}  Nxf6 {[%clk 0:00:37]} 23. Nxf6+ {[%clk 0:00:50]}  Bxf6 {[%clk 0:00:22]} 24. Qxf6 {[%clk 0:00:49]}  Nf5 {[%clk 0:00:23]} 25. Qg6+ {[%clk 0:00:31]}  Kh8 {[%clk 0:00:20]} 26. exf5 {[%clk 0:00:30]}  Rg8 {[%clk 0:00:14]} 27. Bxg8 {[%clk 0:00:30]}  Rxg8 {[%clk 0:00:14]} 28. Qf7 {[%clk 0:00:31]}  e4 {[%clk 0:00:10]} 29. d5 {[%clk 0:00:30]}  Qf8 {[%clk 0:00:04]} 30. Qxc7 {[%clk 0:00:30]}  Bxd5 {[%clk 0:00:03]} 31. Rad1 {[%clk 0:00:28]}  Qxf5 {[%clk 0:00:01]} 32. Qxd6 {[%clk 0:00:29]}  Bf7 {[%clk 0:00:01]} 33. Qd4+ {[%clk 0:00:27]} 1-0


[Site "https://www.chess.com"]